bitfinex/quotes_ETHUSD_20241023
["timestamp","ask_amount","ask_price","bid_price","bid_amount"]
[1729689609417,3.88698,2572.7,2572.6,0.1945072]
[1729689609619,1.74206266,2572.7,2572.6,0.1945072]
[1729689610900,5.62902266,2572.7,2572.6,0.1945072]
[1729689611419,3.88711,2572.6,2572.3,0.30143877]
[1729689611576,5.62917266,2572.6,2572.4,0.19450537]
[1729689611782,1.74206266,2572.6,2572.5,0.19450537]
[1729689613001,1.74206266,2572.7,2572.5,0.19450537]
[1729689613197,5.62888266,2572.8,2572.3,4.18897711]
[1729689613384,5.62888266,2572.8,2572.4,0.19450039]
[1729689613586,5.62888266,2572.8,2572.5,0.19450039]
[1729689613772,5.62888266,2572.8,2572.6,0.19450039]
[1729689613979,5.62888266,2572.8,2572.5,0.7818]
[1729689614309,5.62888266,2572.8,2572.6,0.19449346]
[1729689614490,5.62888266,2572.8,2572.5,0.7818]
[1729689614687,1.74206266,2572.7,2572.6,0.19449755]
[1729689614986,1.74206266,2572.7,2572.5,0.7818]
[1729689615189,9.51584266,2572.8,2572.5,0.7818]
[1729689615599,1.74206266,2572.7,2572.5,0.7818]
[1729689616112,1.74206266,2572.7,2572.6,0.1944982]
[1729689616814,5.62888266,2572.8,2572.6,0.1944982]
[1729689617055,9.51577266,2572.8,2572.5,0.7818]
[1729689617384,9.51577266,2572.8,2572.6,0.1944937]
[1729689617585,1.74206266,2572.7,2572.5,0.7818]
[1729689617783,1.74206266,2572.7,2572.6,0.19449676]
[1729689618124,5.62888266,2572.8,2572.6,0.19449456]
[1729689618325,5.62888266,2572.8,2572.5,0.7818]
[1729689618517,9.51580266,2572.8,2572.6,0.19449446]
[1729689618714,5.62888266,2572.8,2572.5,0.7818]
[1729689619032,3.88668,2572.9,2572.6,0.1944903]
[1729689619213,3.88668,2572.9,2572.5,5.55487229]
[1729689619214,5.62874266,2572.9,2572.7,0.1944903]
[1729689619417,5.62874266,2572.9,2572.5,4.66899]
[1729689619715,5.62874266,2572.9,2572.6,0.19448229]
[1729689619896,5.62874266,2572.9,2572.7,0.19448229]
[1729689620093,5.62874266,2572.9,2572.5,4.66899]
[1729689620094,5.62874266,2572.9,2572.5,4.91210697]
[1729689620292,5.62874266,2572.9,2572.6,0.19448235]
[1729689620605,5.62874266,2572.9,2572.7,0.19448235]
[1729689620817,5.62874266,2572.9,2572.5,4.66899]
[1729689621115,5.62874266,2572.9,2572.6,0.19448795]
[1729689621321,5.62887266,2572.8,2572.7,0.19448805]
[1729689621635,0.0567,2572.7,2572.4,0.24311007]
[1729689621939,5.62917266,2572.6,2572.5,0.19449588]
[1729689622832,3.88727,2572.5,2572.3,0.88020589]
[1729689623135,5.62933266,2572.5,2572.4,0.19449795]
[1729689623522,3.88727,2572.5,2572.4,0.19450996]
[1729689623833,3.88727,2572.5,2572.3,0.05830589]
[1729689623834,5.62933266,2572.5,2572.3,0.05830589]
[1729689624040,3.88727,2572.5,2572.3,0.05830589]
[1729689624840,5.62933266,2572.5,2572.3,0.05830589]
[1729689625320,5.62948266,2572.4,2572.1,1.06504321]
[1729689625499,5.62948266,2572.4,2572.2,0.19451291]
[1729689625692,5.62948266,2572.4,2572.1,1.06504321]
[1729689625693,5.62948266,2572.4,2572.3,0.19451291]
[1729689628309,5.62948266,2572.4,2572.1,0.88021369]
[1729689628516,5.62948266,2572.4,2572.2,0.19451357]
[1729689628735,5.62948266,2572.4,2572.3,0.19451357]
[1729689628925,5.62948266,2572.4,2572.1,0.88021369]
[1729689629254,5.62935266,2572.5,2572.2,0.19452093]
[1729689629421,5.62935266,2572.5,2572.1,1.12335566]
[1729689629422,5.62948266,2572.4,2572.3,0.19452093]
[1729689632011,5.69339276,2572.4,2572.3,0.19452299]
[1729689632355,5.69339276,2572.4,2572.3,0.19452176]
[1729689633751,3.9513301,2572.4,2572.3,0.19452176]
[1729689633923,1.80597276,2572.4,2572.3,0.19452176]
[1729689634457,0.0639101,2572.4,2572.3,0.43767102]
[1729689635122,0.0639101,2572.4,2572.3,0.19452176]
[1729689635322,0.0639101,2572.4,2572.3,0.43767048]
[1729689635527,5.69339276,2572.4,2572.1,0.88021369]
[1729689635718,5.69339276,2572.4,2572.2,0.43766781]
[1729689635950,5.69339276,2572.4,2572.3,0.43766781]
[1729689637252,5.69339276,2572.4,2572.3,0.19451903]
[1729689637960,5.69339276,2572.4,2572.3,0.19452217]
[1729689639066,0.0639101,2572.4,2572.1,4.76806369]
[1729689639269,0.0639101,2572.4,2572.3,4.32523703]
[1729689639583,1.74206266,2572.5,2572.3,0.43766703]
[1729689639734,0.06476531,2572.4,2572.2,3.8877]
[1729689639947,0.06476531,2572.4,2572.3,0.43766413]
[1729689640349,5.62918266,2572.6,2572.3,0.43766413]
[1729689640555,0.06476531,2572.4,2572.2,3.8877]
[1729689640721,5.62918266,2572.6,2572.3,0.43766161]
[1729689640936,5.62918266,2572.6,2572.4,0.19451633]
[1729689641136,5.62918266,2572.6,2572.2,3.8877]
[1729689641137,5.62918266,2572.6,2572.5,0.19451633]
[1729689643643,3.88712,2572.6,2572.5,0.19451633]
[1729689643840,5.62904266,2572.7,2572.5,0.19451633]
[1729689644096,5.62904266,2572.7,2572.6,0.19451633]
[1729689644273,3.88698,2572.7,2572.6,0.19451633]
[1729689644467,1.74206266,2572.8,2572.6,0.19451633]
[1729689644670,7.77355,2572.9,2572.5,4.13032775]
[1729689644671,3.88673,2572.9,2572.5,4.13032775]
[1729689644843,5.62888266,2572.8,2572.6,0.43763092]
[1729689645047,5.62888266,2572.8,2572.7,0.19450317]
[1729689653889,5.69368585,2572.8,2572.7,0.19450317]
[1729689655487,5.69368585,2572.8,2572.7,0.19449598]
[1729689656952,5.69368585,2572.8,2572.7,0.19449272]
[1729689658373,5.69368585,2572.8,2572.4,0.8322]
[1729689658576,5.69368585,2572.8,2572.5,0.43761523]
[1729689658777,5.69368585,2572.8,2572.6,0.19449607]
[1729689658976,5.69368585,2572.8,2572.7,0.19449607]
[1729689660601,3.88734,2572.5,2572.1,4.77524369]
[1729689660804,5.62940266,2572.5,2572.1,4.84924786]
[1729689660957,0.06484946,2572.4,2572.2,0.43764253]
[1729689661161,0.06484946,2572.4,2572.3,0.43764253]
[1729689662692,3.88728,2572.5,2572.3,0.43764253]
[1729689662877,3.88728,2572.5,2572.4,0.43764253]
[1729689663085,5.62934266,2572.5,2572.4,0.43764253]
[1729689663390,3.88728,2572.5,2572.4,0.43764621]
[1729689663793,5.62934266,2572.5,2572.4,0.43764945]
[1729689664599,3.88728,2572.5,2572.4,0.43764945]
[1729689666400,5.62934266,2572.5,2572.4,0.43764945]
[1729689667188,3.88742,2572.4,2572.1,0.88741369]
[1729689667379,3.88742,2572.4,2572.2,0.19451105]
[1729689667721,3.88742,2572.4,2572.3,0.43764986]
[1729689667871,5.62948266,2572.4,2572.3,0.43764986]
[1729689668679,5.69430012,2572.4,2572.3,0.43764986]
[1729689668882,0.06481746,2572.4,2572.3,0.43764986]
[1729689669913,5.69430012,2572.4,2572.3,0.43764986]
[1729689671004,5.69430012,2572.4,2572.3,0.43766023]
[1729689673781,3.95223746,2572.4,2572.3,0.43766023]
[1729689674506,3.95223746,2572.4,2572.1,0.88741369]
[1729689674675,3.95223746,2572.4,2572.3,0.19451479]
[1729689674880,3.95223746,2572.4,2572.3,0.43765828]
[1729689677016,5.69430012,2572.4,2572.3,0.43765828]
[1729689677580,5.69430012,2572.4,2572.3,0.1945146]
[1729689677783,5.69430012,2572.4,2572.3,0.43765785]
[1729689677983,5.74335912,2572.4,2572.3,0.43765785]
[1729689678385,5.74335912,2572.4,2572.1,0.88741369]
[1729689678585,5.74335912,2572.4,2572.3,0.24314499]
[1729689678810,5.74335912,2572.4,2572.3,0.43766098]
[1729689682142,5.74335912,2572.4,2572.1,0.88741369]
[1729689682329,5.74335912,2572.4,2572.2,0.43766136]
[1729689682648,5.74335912,2572.4,2572.3,0.43766136]
[1729689684322,0.11387646,2572.4,2572.3,0.43766136]
[1729689684543,0.11387646,2572.4,2572.3,5.61312043]
[1729689685747,0.11387646,2572.4,2572.3,1.19683898]
[1729689687751,5.74335912,2572.4,2572.3,0.43763898]
[1729689687910,5.74335912,2572.4,2572.3,0.19450621]
[1729689689420,3.8876,2572.3,2572.1,0.05831369]
[1729689689626,5.62966266,2572.3,2572.2,0.4376922]
[1729689692035,5.67854166,2572.4,2572.2,0.4376922]
[1729689692226,3.936479,2572.4,2572.3,0.4376922]
[1729689692916,5.67854166,2572.4,2572.3,0.4376922]
[1729689694057,0.049059,2572.4,2572.3,0.4376922]
[1729689694570,0.049059,2572.4,2572.3,4.77104888]
[1729689695122,0.049059,2572.4,2572.3,0.88347888]
[1729689695321,0.049059,2572.4,2572.3,0.4376922]
[1729689695558,0.049059,2572.4,2572.3,0.49600227]
[1729689696659,0.049059,2572.4,2572.3,0.49595021]
[1729689697043,0.049059,2572.4,2572.3,0.49595075]
[1729689698756,0.11383925,2572.4,2572.3,0.49595075]
[1729689700268,1.85590191,2572.4,2572.3,0.05831007]
[1729689700560,1.85590191,2572.4,2572.3,0.49596883]
[1729689700865,5.74332191,2572.4,2572.3,0.25282507]
[1729689705241,5.74332191,2572.4,2572.3,0.05831007]
[1729689705441,3.88772,2572.2,2572.0,0.00973]
[1729689705624,5.62978266,2572.2,2572.1,0.43770488]
[1729689705825,5.62978266,2572.2,2572.1,0.1945355]
[1729689707373,6.17978266,2572.2,2572.1,0.1945355]
[1729689708528,6.17978266,2572.2,2572.0,0.00973]
[1729689708529,3.88787,2572.1,2572.0,0.00973]
[1729689708734,9.17993266,2572.1,2572.0,0.00973]
[1729689713695,9.24444333,2572.1,2572.0,0.00973]
[1729689719920,7.50238067,2572.1,2572.0,0.00973]
[1729689720082,9.24444333,2572.1,2572.0,0.00973]
[1729689722518,3.95238067,2572.1,2572.0,0.00973]
[1729689722690,3.95238067,2572.1,2572.0,0.81633]
[1729689722890,3.95238067,2572.1,2572.0,1.01087077]
[1729689723190,5.69444333,2572.1,2572.0,0.81633]
[1729689725130,3.95238067,2572.1,2572.0,0.81633]
[1729689725418,5.69444333,2572.1,2572.0,0.81633]
[1729689726000,0.06451067,2572.1,2572.0,1.01087126]
[1729689726931,3.95238067,2572.1,2572.0,1.01087126]
[1729689727758,0.06451067,2572.1,2572.0,1.25404683]
[1729689727900,5.62971266,2572.3,2572.0,1.01087126]
[1729689728098,5.62971266,2572.3,2572.1,0.19454126]
[1729689728302,5.62971266,2572.3,2572.2,0.19454126]
[1729689728804,5.69417159,2572.3,2572.2,0.19454126]
[1729689729097,5.69417159,2572.3,2572.2,0.1945313]
[1729689730449,0.06445893,2572.3,2572.2,1.25647826]
[1729689730604,0.06445893,2572.3,2572.2,1.58016469]
[1729689731348,0.06445893,2572.3,2572.2,1.82331305]
[1729689731549,0.06445893,2572.3,2572.2,1.58016469]
[1729689731722,0.06445893,2572.3,2572.2,7.45308913]
[1729689732051,0.049059,2572.4,2572.3,4.65637]
[1729689732224,0.049059,2572.4,2572.3,6.23049924]
[1729689732424,0.1115684,2572.4,2572.3,5.79282616]
[1729689732759,0.11156855,2572.4,2572.3,6.23044742]
[1729689733515,0.11156855,2572.4,2572.3,7.97251008]
[1729689734761,0.11156855,2572.4,2572.3,6.23044742]
[1729689737256,0.11156855,2572.4,2572.3,5.9873245]
[1729689739551,0.11156855,2572.4,2572.3,5.79282616]
[1729689739864,0.11156855,2572.4,2572.3,5.98731533]
[1729689741150,0.11156855,2572.4,2572.3,7.72937799]
[1729689741352,0.049059,2572.4,2572.3,8.03079047]
[1729689741556,0.049059,2572.4,2572.3,11.05079047]
[1729689744694,0.0567,2573.2,2573.1,3.88636]
[1729689744895,0.0567,2573.2,2573.1,6.01705866]
[1729689745080,0.11558321,2573.2,2573.1,6.21154783]
[1729689745281,0.0567,2573.2,2573.1,6.21154783]
[1729689745773,0.11617892,2573.2,2573.1,6.21154783]
[1729689749006,0.0567,2573.2,2573.1,6.21154783]
[1729689749173,0.0567,2573.2,2573.1,6.28926223]
[1729689749373,0.0567,2573.2,2573.1,9.28926223]
[1729689749687,0.0567,2573.2,2573.1,9.21154783]
[1729689749909,0.0567,2573.2,2573.1,9.4546593]
[1729689750206,0.0567,2573.2,2573.1,9.01705866]
[1729689750407,0.0567,2573.2,2573.1,9.21145579]
[1729689751370,1e-05,2573.2,2573.1,9.21145579]
[1729689751701,1e-05,2573.2,2573.1,11.02697266]
[1729689751885,1e-05,2573.2,2573.1,9.4544522]
[1729689752475,1e-05,2573.2,2573.1,9.21145579]
[1729689752898,1e-05,2573.2,2573.1,9.4544522]
[1729689753099,1e-05,2573.2,2573.1,9.21145579]
[1729689753803,1e-05,2573.2,2573.1,9.45439539]
[1729689754369,1e-05,2573.2,2573.1,11.24611268]
[1729689756232,1e-05,2573.2,2573.1,11.79611268]
[1729689757331,1e-05,2573.2,2573.1,11.79607094]
[1729689762126,1e-05,2573.2,2573.1,8.26229099]
[1729689763238,1e-05,2573.2,2573.1,7.71229099]
[1729689763439,1e-05,2573.2,2573.1,4.71229099]
[1729689763799,1e-05,2573.2,2573.1,4.32365499]
[1729689764242,1e-05,2573.2,2573.1,4.39706215]
[1729689764600,1e-05,2573.2,2573.1,3.88636]
[1729689764842,1e-05,2573.2,2573.1,4.39718135]
[1729689765141,1e-05,2573.2,2573.1,4.3237715]
[1729689765449,1e-05,2573.2,2573.1,5.15062554]
[1729689768343,1e-05,2573.2,2573.1,5.22833505]
[1729689768512,1e-05,2573.2,2573.1,8.15062554]
[1729689771746,1e-05,2573.2,2573.1,8.15054445]
[1729689771943,3.88431,2574.5,2574.0,3.88498]
[1729689772229,3.88431,2574.5,2574.1,0.43733041]
[1729689772446,0.05633482,2574.4,2574.2,0.43733041]
[1729689772645,0.05633482,2574.4,2574.3,0.43733041]
[1729689773043,0.04633482,2574.4,2574.3,0.43733041]
[1729689774238,3.93073482,2574.4,2574.3,0.43733041]
[1729689774433,3.88427,2574.5,2574.3,0.43733041]
[1729689774661,0.05435731,2574.4,2574.1,4.01670434]
[1729689774933,0.04435731,2574.4,2574.2,0.43731311]
[1729689775156,0.04435731,2574.4,2574.3,0.43731311]
[1729689775354,0.04435731,2574.4,2574.1,0.05826851]
[1729689775557,0.04435731,2574.4,2574.2,0.43733701]
[1729689775784,0.04435731,2574.4,2574.3,0.43733701]
[1729689776776,5.66843468,2574.4,2574.3,0.43733701]
[1729689778783,5.66843468,2574.4,2574.1,0.05826851]
[1729689778969,1.73967737,2574.3,2574.2,0.43733262]
[1729689779286,1.7837007,2574.3,2574.1,0.05826851]
[1729689779476,1.7837007,2574.3,2574.2,0.43733875]
[1729689779672,5.6682507,2574.3,2574.2,0.43733875]
[1729689779984,1.7837007,2574.3,2574.2,0.43733875]
[1729689780174,0.05402333,2574.3,2574.2,0.43733875]
[1729689781849,0.05402333,2574.3,2574.2,0.43733374]
[1729689782088,0.05402333,2574.3,2574.1,0.05826851]
[1729689782249,0.05402333,2574.3,2574.2,0.43733381]
[1729689784651,5.62398737,2574.5,2574.2,0.43733381]
[1729689784948,5.62380737,2574.6,2574.1,3.94296851]
[1729689785187,0.05402353,2574.4,2574.2,0.43731602]
[1729689785350,5.62380737,2574.6,2574.3,0.43731602]
[1729689785551,11.82,2575.1,2574.3,0.43731602]
[1729689785552,3.88265,2575.6,2575.2,3.88318]
[1729689785887,3.88267,2575.6,2575.3,0.43732193]
[1729689786054,3.88274,2575.5,2575.4,0.19436396]
[1729689786263,3.88267,2575.6,2575.4,0.19436396]
[1729689786468,5.62249737,2575.5,2575.2,0.24286058]
[1729689786663,3.88296,2575.4,2575.3,0.19428729]
[1729689787297,3.88312,2575.3,2574.8,3.88378]
[1729689787611,3.88312,2575.3,2574.9,1.39528355]
[1729689787814,3.88312,2575.3,2575.0,0.43717016]
[1729689788103,1.73967737,2575.5,2575.1,0.19429785]
[1729689788318,3.88291,2575.4,2575.0,3.88347]
[1729689788497,3.88291,2575.4,2575.1,0.19429459]
[1729689788673,0.04324515,2575.3,2575.2,0.19429459]
[1729689789210,0.04324515,2575.3,2574.9,5.08452163]
[1729689789378,0.04324515,2575.3,2575.0,0.19429541]
[1729689789583,3.92630515,2575.3,2574.8,4.12658045]
[1729689789815,3.88319,2575.2,2574.9,0.25255307]
[1729689790107,0.04180325,2575.2,2575.0,0.19430407]
[1729689790304,0.04180325,2575.2,2574.9,0.058249]
[1729689791009,0.04180325,2575.2,2575.0,0.19430372]
[1729689791164,0.04180325,2575.2,2574.9,0.058249]
[1729689791569,0.04180325,2575.2,2574.9,4.7656907]
[1729689791817,3.88291,2575.4,2575.0,0.19430193]
[1729689792107,0.04180296,2575.1,2575.0,0.19429453]
[1729689792578,3.88291,2575.4,2575.0,0.19429453]
[1729689792787,0.04180296,2575.1,2575.0,0.19429453]
[1729689792986,3.88291,2575.4,2575.0,1.11992886]
[1729689793197,0.04180296,2575.1,2574.9,4.95998523]
[1729689793371,3.88291,2575.4,2574.9,4.95998523]
[1729689793572,0.04180267,2575.0,2574.9,4.95998523]
[1729689793797,3.88291,2575.4,2574.9,4.95998523]
[1729689794040,0.04180267,2575.0,2574.9,4.95998452]
[1729689794362,3.8827,2575.6,2574.9,4.95998452]
[1729689794499,3.88243,2575.7,2575.2,3.88311]
[1729689794700,3.88243,2575.7,2575.2,7.76622]
[1729689794941,7.76477,2575.8,2575.3,3.883]
[1729689795113,7.76477,2575.8,2574.9,0.8820807]
[1729689795114,3.88292,2575.4,2574.8,3.88368]
[1729689795440,3.8832,2575.2,2574.8,4.07797052]
[1729689795639,3.8832,2575.2,2574.8,4.94953457]
[1729689796201,3.8832,2575.2,2574.8,4.75524405]
[1729689796405,3.8832,2575.2,2574.8,4.94953457]
[1729689797150,3.88305,2575.3,2574.9,3.88362]
[1729689801624,3.88322,2575.2,2574.8,0.19430117]
[1729689802121,3.88305,2575.3,2574.8,4.07801117]
[1729689802536,7.76621,2575.3,2574.8,4.07801117]
[1729689803161,3.88305,2575.3,2574.8,4.07801117]
[1729689803639,0.04276892,2575.2,2574.8,4.07801117]
[1729689803825,0.04276892,2575.2,2574.8,3.88371]
[1729689803826,3.92600892,2575.2,2574.8,3.88371]
[1729689804322,0.04276892,2575.2,2574.8,0.19430935]
[1729689804526,3.88302,2575.4,2574.9,3.88364]
[1729689804760,3.92582409,2575.3,2574.9,3.88364]
[1729689805162,3.92582409,2575.3,2574.9,4.07794382]
[1729689806866,0.04276409,2575.3,2574.9,0.19430382]
[1729689807270,3.92583409,2575.3,2574.9,0.19430382]
[1729689807666,0.04276409,2575.3,2574.9,0.19430382]
[1729689807874,3.88319,2575.2,2574.9,0.19430169]
[1729689808234,0.04276131,2575.1,2574.8,3.88372]
[1729689808433,0.04276131,2575.1,2574.9,0.19430177]
[1729689808628,0.04276131,2575.1,2574.7,4.69581168]
[1729689808846,0.04276131,2575.1,2574.8,0.19430184]
[1729689809047,0.04276131,2575.1,2574.9,0.19430184]
[1729689809254,0.04276131,2575.1,2574.8,3.88379]
[1729689809589,0.04276131,2575.1,2574.9,0.19430214]
[1729689809786,0.04276131,2575.1,2574.8,3.88371]
[1729689810083,3.88311,2575.3,2574.9,4.57175474]
[1729689810285,3.88311,2575.3,2575.0,0.19430059]
[1729689810471,3.88277,2575.5,2574.9,4.37745415]
[1729689810788,3.88291,2575.4,2575.0,4.07771652]
[1729689811084,3.88291,2575.4,2575.0,3.88342]
[1729689811677,3.88291,2575.4,2574.9,0.49385415]
[1729689811861,3.88305,2575.3,2575.0,0.19429913]
[1729689812187,3.88306,2575.3,2574.9,3.8835]
[1729689812389,3.88306,2575.3,2575.0,0.19429805]
[1729689812562,3.88306,2575.3,2575.1,0.19429805]
[1729689812766,3.88306,2575.3,2574.9,3.8835]
[1729689812767,3.88306,2575.3,2574.9,4.12637256]
[1729689812961,3.88322,2575.2,2575.0,0.19429849]
[1729689813183,3.88322,2575.2,2575.1,0.19429849]
[1729689813664,3.8831,2575.3,2575.1,0.19429849]
[1729689813863,3.8831,2575.3,2574.8,3.88377]
[1729689814066,3.8831,2575.3,2574.9,0.43717315]
[1729689814246,3.8831,2575.3,2574.8,3.88377]
[1729689814247,3.8831,2575.3,2575.0,0.43717294]
[1729689814451,3.8831,2575.3,2575.1,0.19429918]
[1729689814653,3.8831,2575.3,2575.2,0.19429918]
[1729689816370,3.8831,2575.3,2575.2,0.19429838]
[1729689818657,3.92589129,2575.3,2575.2,0.19429838]
[1729689820299,3.92589129,2575.3,2574.9,3.88364]
[1729689820486,3.92589129,2575.3,2575.0,0.43717354]
[1729689820798,3.92589129,2575.3,2575.1,0.43717354]
[1729689821101,3.92589129,2575.3,2575.2,0.1942993]
[1729689823705,6.21442364,2575.3,2575.2,0.1942993]
[1729689823872,10.96295599,2575.3,2575.2,0.1942993]
[1729689824077,0.55,2575.2,2574.8,0.24288481]
[1729689824274,5.62217235,2574.9,2574.7,0.05825168]
[1729689824503,6.21518069,2574.8,2574.7,0.05825168]
[1729689824708,6.21518069,2574.8,2574.7,0.25260028]
[1729689824859,4.47664834,2574.8,2574.7,0.25260028]
[1729689825059,0.04285834,2574.8,2574.7,0.25260028]
[1729689825295,3.88353,2575.0,2574.7,0.49552121]
[1729689825597,3.88353,2575.0,2574.8,0.1943486]
[1729689825803,3.88353,2575.0,2574.9,0.1943486]
[1729689828461,5.62206235,2575.0,2574.9,0.1943486]
[1729689828707,3.88353,2575.0,2574.7,0.05825168]
[1729689828901,3.88364,2574.9,2574.8,0.19432521]
[1729689829962,6.17217235,2574.9,2574.8,0.19432521]
[1729689830207,6.17217235,2574.9,2574.7,0.05825168]
[1729689830208,4.43379,2574.8,2574.7,0.05825168]
[1729689830566,6.17232235,2574.8,2574.7,0.05825168]
[1729689832205,6.17232235,2574.8,2574.3,0.19435696]
[1729689832206,3.88436,2574.5,2574.3,0.19435696]
[1729689832413,6.17289235,2574.5,2574.4,0.19435696]
[1729689833121,4.43455,2574.3,2574.2,0.99375498]
[1729689833443,6.17308235,2574.3,2574.2,0.7508]
[1729689833596,6.21399848,2574.3,2574.2,0.7508]
[1729689838355,4.43476,2574.2,2573.8,0.19439024]
[1729689838645,1.73853235,2574.1,2573.8,0.76223066]
[1729689838938,3.92557548,2574.1,2573.8,0.76223066]
[1729689839345,5.66410783,2574.1,2573.8,0.76223066]
[1729689839516,5.66410783,2574.1,2573.8,0.56784042]
[1729689840142,3.92557548,2574.1,2573.8,0.56784042]
[1729689840344,5.66410783,2574.1,2573.8,0.56784042]
[1729689840707,3.92557548,2574.1,2573.8,0.76222805]
[1729689840910,3.92557548,2574.1,2573.8,0.56784042]
[1729689842146,5.66410783,2574.1,2573.8,0.56784042]
[1729689842447,3.92557548,2574.1,2573.8,0.56784042]
[1729689843026,0.04072548,2574.1,2573.8,0.56784042]
[1729689843220,0.04072548,2574.1,2573.9,0.85329685]
[1729689843419,5.62308235,2574.3,2573.9,4.73834685]
[1729689843708,1.77771278,2574.2,2573.9,4.73834685]
[1729689843906,0.03918043,2574.2,2573.9,4.73834685]
[1729689844141,1.73853235,2574.2,2573.9,4.73834685]
[1729689844345,0.03918014,2574.1,2573.9,4.73834685]
[1729689845934,0.03918014,2574.1,2573.9,0.85329685]
[1729689846137,0.03918014,2574.1,2573.8,0.19438926]
[1729689846322,1.73853235,2573.9,2573.8,0.19438926]
[1729689846525,5.62358235,2574.0,2573.7,0.19438926]
[1729689846738,0.03917956,2573.9,2573.7,0.19438926]
[1729689846941,1.77771191,2573.9,2573.7,0.19438913]
[1729689847141,5.66286191,2573.9,2573.7,0.19438913]
[1729689847346,9.54809191,2573.9,2573.7,0.19438913]
[1729689847555,3.92432956,2573.9,2573.7,0.19438913]
[1729689847752,5.66286191,2573.9,2573.7,0.19438913]
[1729689847956,5.62383235,2573.8,2573.6,0.05827301]
[1729689848158,5.62398235,2573.7,2573.6,0.05827301]
[1729689848367,6.21314019,2573.7,2573.6,0.05827301]
[1729689848561,3.88591,2573.4,2573.1,0.19438913]
[1729689848742,9.51045235,2573.4,2573.0,4.08087913]
[1729689849041,0.03915668,2573.3,2573.1,0.19438913]
[1729689849238,0.03915668,2573.3,2573.0,0.40808791]
[1729689849443,1.77768903,2573.3,2573.2,0.05828554]
[1729689850710,5.66374903,2573.3,2573.2,0.05828554]
[1729689851069,6.21374903,2573.3,2573.2,0.05828554]
[1729689857808,5.66374903,2573.3,2573.2,0.05828554]
[1729689858782,6.21374903,2573.3,2573.2,0.05828554]
[1729689860393,3.88681,2572.8,2572.5,0.24306811]
[1729689860594,3.88703,2572.7,2572.6,0.19448019]
[1729689860809,3.92562379,2572.7,2572.6,0.19448019]
[1729689861020,3.92562379,2572.7,2572.6,0.19448245]
[1729689861511,3.92562379,2572.7,2572.6,0.19448246]
[1729689861881,0.03859379,2572.7,2572.6,0.19448246]
[1729689862086,3.88666,2572.9,2572.6,0.80666433]
[1729689862328,3.92548393,2572.8,2572.7,0.19448246]
[1729689864627,3.92548393,2572.8,2572.7,0.1944812]
[1729689866770,0.03859393,2572.8,2572.7,0.1944812]
[1729689867873,3.92540393,2572.8,2572.7,0.1944812]
[1729689869260,0.03859393,2572.8,2572.7,0.1944812]
[1729689870165,0.03779619,2572.8,2572.7,0.1944812]
[1729689870558,0.03779619,2572.8,2572.7,0.43758161]
[1729689870854,0.03779619,2572.8,2572.7,0.1944812]
[1729689871058,0.03779619,2572.8,2572.7,0.43758161]
[1729689871228,0.03779619,2572.8,2572.7,0.1944812]
[1729689871424,0.03779619,2572.8,2572.7,0.43758161]
[1729689871668,0.03779619,2572.8,2572.7,0.1944812]
[1729689871828,0.03779619,2572.8,2572.5,3.94547081]
[1729689872023,0.03779619,2572.8,2572.7,0.19447982]
[1729689872234,0.03779619,2572.8,2572.7,0.4375796]
[1729689875162,0.03779619,2572.8,2572.7,0.43757199]
[1729689877228,0.03779619,2572.8,2572.7,0.51124603]
[1729689877403,0.03779619,2572.8,2572.7,0.43757199]
[1729689878232,0.03779619,2572.8,2572.7,0.51124603]
[1729689878733,0.03779619,2572.8,2572.7,0.51144276]
[1729689880165,3.92460619,2572.8,2572.7,0.51144699]
[1729689880732,0.03779619,2572.8,2572.7,0.51144699]
[1729689880916,0.03779619,2572.8,2572.7,0.43757849]
[1729689881089,0.03779619,2572.8,2572.7,0.51143904]
[1729689882133,3.88654,2573.0,2572.5,6.44877316]
[1729689882432,3.92356788,2572.9,2572.7,0.0738734]
[1729689882588,3.92356788,2572.9,2572.8,0.19447407]
[1729689882800,3.92356788,2572.9,2572.8,0.43756666]
[1729689885243,0.03685788,2572.9,2572.8,0.43756666]
[1729689885442,0.03685788,2572.9,2572.8,6.13678898]
[1729689885614,3.88609,2573.3,2572.8,7.93630832]
[1729689885941,3.88628,2573.2,2572.9,0.07394169]
[1729689886241,0.03690622,2573.1,2573.0,0.43752773]
[1729689886541,3.88609,2573.3,2573.0,0.43752773]
[1729689886740,0.03693294,2573.2,2573.1,0.43752773]
[1729689887037,3.88609,2573.3,2573.1,0.43752773]
[1729689887339,0.0369331,2573.2,2572.9,5.69910404]
[1729689887547,1.73853235,2573.6,2573.0,3.32197634]
[1729689887780,3.88596,2573.4,2573.1,0.56974329]
[1729689888082,3.88596,2573.4,2573.2,0.43751266]
[1729689888377,0.03708143,2573.3,2573.1,0.05828894]
[1729689888678,0.03708143,2573.3,2573.2,0.43749322]
[1729689889269,0.03708143,2573.3,2573.1,0.74860637]
[1729689889584,0.03708143,2573.3,2573.2,0.43748753]
[1729689891809,0.03708143,2573.3,2573.2,5.07599753]
[1729689892266,5.62396235,2573.8,2573.2,5.07599753]
[1729689892467,3.88548,2573.7,2573.3,5.07979116]
[1729689892671,3.88477,2574.2,2573.7,3.88539]
[1729689892877,3.88477,2574.2,2573.8,0.43740868]
[1729689892878,5.62323235,2574.2,2573.8,0.43740868]
[1729689893189,3.88487,2574.1,2573.9,0.19439283]
[1729689893502,5.62340235,2574.1,2573.7,3.88539]
[1729689893656,0.03615366,2574.0,2573.8,0.19438953]
[1729689893863,0.03615366,2574.0,2573.9,0.19438473]
[1729689894771,0.03615366,2574.0,2573.9,4.07953473]
[1729689894974,3.88464,2574.3,2573.9,0.19438473]
[1729689895316,0.03647093,2574.2,2573.8,3.88522]
[1729689895462,3.8853,2573.8,2573.7,0.05827753]
[1729689895900,5.66058243,2573.8,2573.7,0.05827753]
[1729689896570,6.21058243,2573.8,2573.7,0.05827753]
[1729689897761,0.03675008,2573.8,2573.7,0.05827753]
[1729689897962,3.92205008,2573.8,2573.7,0.05827753]
[1729689898372,4.47205008,2573.8,2573.7,0.05827753]
[1729689898773,8.00739372,2573.8,2573.7,0.05827753]
[1729689899698,4.47205008,2573.8,2573.7,0.05827753]
[1729689901390,3.92205008,2573.8,2573.7,0.05827753]
[1729689902115,0.03675008,2573.8,2573.7,0.05827753]
[1729689902258,0.58675008,2573.8,2573.7,0.05827753]
[1729689902462,0.58675008,2573.8,2573.4,3.8859]
[1729689902463,4.4353,2573.8,2573.4,3.8859]
[1729689902763,4.47165422,2573.8,2573.4,3.8859]
[1729689902967,0.58635422,2573.8,2573.4,7.7718]
[1729689903201,0.03635422,2573.8,2573.6,3.88558]
[1729689903409,0.03635422,2573.8,2573.5,3.88574]
[1729689903559,0.55,2573.9,2573.5,7.77142]
[1729689903761,0.03638604,2573.8,2573.5,7.77142]
[1729689903967,0.03638604,2573.8,2573.5,3.88568]